Cogmind - Beta 12 @@@ ROGUE MODE // 2024.01.02 @ 21:28:02 Player: ktur Result: Destroyed by G-67 Veteran with Field Laser Performance ------------- Evolutions (4) 2000 Regions Visited (15) 3000 Robots Destroyed (230) 1150 Value Destroyed (11035) 11035 Prototype IDs (39) 780 Alien Tech Used (0) 0 Bonus (8050) 8050 TOTAL SCORE: 26015 Bonus ------- High Alert Combat Kills 2828 Follower Combat Kills 622 Entered Garrisons 800 Used RIF Installer 3500 Aligned with FarCom 300 Cogmind --------- Core Integrity 0/850 Matter 166/300 Energy 98/100 System Corruption 23% Temperature Cool (0) Movement Core (50) Location -6/Factory Parts ------- > --- POWER (1) -------- (None) > --- PROPULSION (4) --- (None) > --- UTILITY (8) ------ Experimental System Shield > --- WEAPON (2) ------- Katana > --- INVENTORY (5) ---- Heavy Mass Driver Peak State ------------ > --- POWER ------------ Light Fission Core > --- PROPULSION ------- Compact Wheel Armored Wheel Centrium Wheel Centrium Wheel > --- UTILITY ---------- Cargo Storage Unit Spectral Analyzer Transport Network Coupler Improved Powered Armor Experimental System Shield Relay Coupler [NC] > --- WEAPON ----------- Cooled Plasma Cannon Magnetic Acceleration Cannon > --- INVENTORY -------- Improved Deuterium Engine VTOL Module Advanced Heat Sink High-capacity Matter Pod Gravity Neutralizer Spectral Analyzer Long-range Terrain Scanner Advanced Melee Analysis Suite Matter Filter Kinecellerator Advanced Actuator Array Advanced Transmission Jammer Advanced ECM Suite Experimental Thermal Shield Hacking Suite Relay Coupler [Swarmer] Relay Coupler [Sentry] Relay Coupler [Heavy] Phase Cannon XL Autogun Array Heavy Mass Driver AWS/Autocannon Heavy Rocket Launcher Powered Hammer [Rating: 78] Favorites ----------- Power Heavy Ion Engine Engine Heavy Ion Engine Power Core Light Nuclear Core Reactor Light Quantum Reactor Propulsion Armored Treads Treads Armored Treads Wheel Armored Huge Wheel Hover Unit Cooled Airjet Flight Unit VTOL Module Utility Cargo Storage Unit Device Advanced Thermal Shield Storage Cargo Storage Unit Processor Advanced Targeting Computer Hackware Hacking Suite Protection Medium Reactive Plating Weapon Enhanced Autogun Energy Cannon Cooled Plasma Cannon Ballistic Gun Enhanced Autogun Ballistic Cannon Heavy Assault Cannon Launcher Heavy Rocket Launcher Special Weapon Remote Datajack Impact Weapon Powered Hammer Slashing Weapon Katana Piercing Weapon Spear Build | -11 -10 -10 -10 -9 -8 -8 -8 -8 -7 -7 -7 -7 -6 -6 -6 ------- Run | Jun Mat Min Exi Min Mat Gar Mat Gar Fac Gar Fac Gar Fac Was Fac Slots Evolved 8 | . . . . . 4 . . . 2 . . . 2 . . Power . | . . . . . . . . . . . . . . . . Propulsion 2 | . . . . . 2 . . . . . . . . . . Utility 6 | . . . . . 2 . . . 2 . . . 2 . . Weapon . | . . . . . . . . . . . . . . . . Parts Attached 233 | 6 2 2 3 1 40 11 1 19 37 19 7 33 47 4 1 Power 17 | 1 . 1 . . 4 . 1 1 1 1 . 2 4 1 . Engine 7 | 1 . . . . 2 . 1 1 1 . . 1 . . . Core 9 | . . 1 . . 2 . . . . 1 . . 4 1 . Reactor 1 | . . . . . . . . . . . . 1 . . . Propulsion 52 | 2 . . 1 1 15 2 . 1 10 . 2 4 12 2 . Treads 20 | 2 . . . 1 14 2 . 1 . . . . . . . Leg . | . . . . . . . . . . . . . . . . Wheel 19 | . . . 1 . . . . . 5 . 2 4 5 2 . Hover 12 | . . . . . 1 . . . 5 . . . 6 . . Flight 1 | . . . . . . . . . . . . . 1 . . Utility 63 | 1 2 . 2 . 5 2 . 5 13 9 1 10 12 1 . Device 15 | . 2 . . . . . . 1 2 2 1 3 4 . . Storage 7 | 1 . . 2 . 1 . . . 1 1 . . 1 . . Processor 7 | . . . . . 2 . . 1 2 . . . 2 . . Hackware 12 | . . . . . . . . . 5 1 . 1 4 1 . Protection 22 | . . . . . 2 2 . 3 3 5 . 6 1 . . Artifact . | . . . . . . . . . . . . . . . . Weapon 101 | 2 . 1 . . 16 7 . 12 13 9 4 17 19 . 1 Energy Gun . | . . . . . . . . . . . . . . . . Energy Cannon 12 | . . . . . 5 . . . . 1 . . 6 . . Ballistic Gun 31 | 2 . 1 . . 8 5 . 9 4 . . 2 . . . Ballistic Cannon 18 | . . . . . . . . . . 5 1 10 2 . . Launcher 12 | . . . . . 1 . . . 1 2 1 3 4 . . Special Weapon 10 | . . . . . . . . 1 5 1 1 1 1 . . Impact Weapon 9 | . . . . . . . . . 1 . 1 1 6 . . Slashing Weapon 8 | . . . . . 2 2 . 2 1 . . . . . 1 Piercing Weapon 1 | . . . . . . . . . 1 . . . . . . Special Melee Weapon . | . . . . . . . . . . . . . . . . Unidentified Prototypes 6 | . . . . . 3 . . . . . . 1 2 . . Parts Lost 42 | . . 1 1 . 2 . . 1 . 3 5 10 14 5 . Power 7 | . . 1 . . . . . . . 1 1 1 1 2 . Propulsion 15 | . . . 1 . 1 . . . . . 2 3 7 1 . Utility 16 | . . . . . . . . 1 . 1 2 6 4 2 . Weapon 4 | . . . . . 1 . . . . 1 . . 2 . . Highest Loss Streak 10 | . . 1 1 . 1 . . 1 . 2 3 5 10 5 . To Critical Strikes . | . . . . . . . . . . . . . . . . Average Slot Usage (%) 82 | . 99 95 90 84 89 89 90 87 84 68 58 72 79 50 9 Engine 4 | . 14 5 . . 5 9 9 8 7 . . 1 . . . Core 3 | . . 3 14 14 3 . . . . 6 5 . 4 2 . Treads 17 | . 28 28 19 13 35 36 36 36 10 . . . . . . Wheel 7 | . . . 5 14 . . . . 6 15 11 24 10 14 . Hover 2 | . . . . . . . . . 5 . . . 12 . . Device 4 | . 13 14 7 . . . . . . 4 12 8 9 4 . Storage 7 | . 14 14 14 14 9 9 9 9 5 7 7 7 2 4 . Processor 6 | . . . . . 8 9 9 4 11 7 5 . 7 9 . Hackware 4 | . . . . . . . . . 15 9 2 . 16 11 6 Protection 7 | . . . . . 8 9 9 12 4 7 3 18 1 1 . Ballistic Gun 11 | . 28 28 28 28 15 17 18 15 8 . . . . . . Ballistic Cannon 1 | . . . . . . . . . . 6 5 5 2 . . Naked Turns . | . . . . . . . . . . . . . . . . Heaviest Build 211 | 10 11 13 207 207 174 174 174 177 176 171 167 211 175 159 2 Greatest Support 80 | 40 40 40 40 10 80 80 80 80 80 56 56 64 66 64 3 Greatest Overweight (x) 20 | . . . 20 20 2 2 2 2 6 3 10 6 4 5 . Average Overweight (x) 1 | . . . 5 20 1 2 2 1 1 2 3 3 . 1 . Largest Inventory Capacity 35 | 8 8 8 35 35 35 30 30 30 30 30 30 30 30 30 5 Average Capacity 26 | 6 8 8 23 35 30 30 30 30 24 30 30 30 16 22 5 Most Carried 30 | 6 8 8 19 23 30 30 30 30 30 30 30 30 30 30 2 Average Carried 24 | 2 7 7 13 21 28 29 29 29 23 29 29 29 14 21 2 Final Capacity 35 | 8 8 8 35 35 30 30 30 30 30 30 30 30 30 5 5 Final Carried 30 | 6 8 8 19 23 30 30 30 30 30 30 30 30 30 2 2 Class Distribution -------------------- 62% | Hauler-Mutant 16% | Bothacker-Mutant 14% | Mutant Dominant Class ---------------- Mutant | -10/Materials Mutant | -10/Mines Mutant | -10/Exiles Hauler-Mutant | -9/Mines Hauler-Mutant | -8/Materials Hauler-Mutant | -8/Garrison Hauler-Mutant | -8/Materials Hauler-Mutant | -8/Garrison Bothacker-Mutant | -7/Factory Hauler-Mutant | -7/Garrison Hauler-Mutant | -7/Factory Bothacker-Mutant | -7/Garrison Mutant | -6/Factory Hauler-Mutant | -6/Waste Mutant | -6/Factory Resources | -11 -10 -10 -10 -9 -8 -8 -8 -8 -7 -7 -7 -7 -6 -6 -6 ----------- Run | Jun Mat Min Exi Min Mat Gar Mat Gar Fac Gar Fac Gar Fac Was Fac Matter Collected 7947 | 210 223 138 30 63 1119 662 300 905 813 891 146 1470 977 . . Remotely . | . . . . . . . . . . . . . . . . Salvage Created 9636 | . 116 221 . 112 1974 957 502 918 767 985 203 1434 1447 . . Parts 470 | 1 8 8 . 8 101 37 36 58 39 42 9 57 66 . . Haulers Intercepted 10 | . 1 . . . 4 . 1 . 4 . . . . . . Recyclers Shooed 5 | . . . . . 3 . . . . . . . 2 . . Parts Field Recycled . | . . . . . . . . . . . . . . . . Retrieved Matter . | . . . . . . . . . . . . . . . . Parts Self-Destructed . | . . . . . . . . . . . . . . . . Prevented . | . . . . . . . . . . . . . . . . Kills | -11 -10 -10 -10 -9 -8 -8 -8 -8 -7 -7 -7 -7 -6 -6 -6 ------- Run | Jun Mat Min Exi Min Mat Gar Mat Gar Fac Gar Fac Gar Fac Was Fac Combat Hostiles Destroyed 176 | . 1 6 . 3 26 13 11 22 7 31 5 26 25 . . Melee 1 | . . . . . . . . 1 . . . . . . . Guns 79 | . 1 6 . 3 19 13 11 21 5 . . . . . . Cannons 60 | . . . . . 3 . . . . 26 3 17 11 . . AOE 36 | . . . . . 4 . . . 2 5 2 9 14 . . Classes Destroyed 19 | 1 3 . . 2 5 1 . 2 . . 1 1 3 . . Worker 13 | 1 . . . . 2 . 3 . . . . . 7 . . Builder 6 | . . . . . . . . . . . 1 . 5 . . Tunneler 1 | . . . . . . . . . . . . . 1 . . Hauler 10 | . 1 . . . 4 . 1 . 4 . . . . . . Recycler 17 | . . . . . 7 . . . 5 . 1 . 4 . . Operator 4 | . . . . . 3 . . . . . 1 . . . . Watcher 6 | . 1 . . . 4 . 1 . . . . . . . . Swarmer 32 | . . . . . 4 . 5 6 3 3 1 4 6 . . Saboteur 1 | . . . . . . . . . . . . . 1 . . Grunt 85 | . 1 6 . 1 16 8 2 5 2 23 1 11 9 . . Brawler 5 | . . . . 1 . . . 3 . . . . 1 . . Duelist 4 | . . . . . . . . 1 . . 1 2 . . . Protector 1 | . . . . . . . . . . . . . 1 . . Sentry 21 | . . . . . 5 1 4 3 1 3 1 3 . . . Specialist 2 | . . . . . . . . 2 . . . . . . . Hunter 9 | . . . . . 1 2 . . 1 1 1 1 2 . . Programmer 13 | . . . . . . 2 . 2 . 1 . 3 5 . . Behemoth 1 | . . . . . . . . . . . . 1 . . . Assembled 1 | . . . . 1 . . . . . . . . . . . Butcher 1 | . . . . . . . . . . . . 1 . . . Best Kill Streak 8 | 1 2 3 . 2 8 3 7 5 2 6 4 5 6 . . Combat Bots Only 6 | . 1 3 . 2 4 3 4 5 2 6 3 5 5 . . Max Kills in Single Turn 5 | 1 1 1 . 1 2 1 2 1 2 3 3 3 5 . . Gunslinging 1 | . . . . . . . 1 . . . . . . . . Exploded 3 | . . . . . 2 . . . 2 3 1 3 2 . . Melee 1 | . . . . . . . . 1 . . . . . . . Uniques/NPCs Destroyed . | . . . . . . . . . . . . . . . . Combat | -11 -10 -10 -10 -9 -8 -8 -8 -8 -7 -7 -7 -7 -6 -6 -6 -------- Run | Jun Mat Min Exi Min Mat Gar Mat Gar Fac Gar Fac Gar Fac Was Fac Damage Taken 11303 | . 23 407 275 118 1002 743 216 1499 429 1422 651 2091 2139 211 77 Core 1915 | . . 109 49 36 170 61 . 167 38 132 131 171 563 211 77 Absorbed by Shields 818 | . . . . . . . . 103 . 409 28 278 . . . Regen/Repaired (Parts) 70 | . . . . . . . . . 70 . . . . . . Core Remaining (%) 45 | 100 . . . 22 . . . 27 . . . 32 . . . Volleys Fired 695 | . 8 37 . 12 108 72 29 85 35 90 23 144 52 . . Largest 2 | . 2 2 . 2 2 2 2 2 2 1 1 1 2 . . Hottest 126 | . 40 40 . 40 126 50 50 50 50 88 60 75 105 . . Shots Fired 1083 | . 16 74 . 24 211 145 58 165 60 90 23 144 73 . . Gun 778 | . 16 74 . 24 182 145 58 159 50 . . 70 . . . Cannon 262 | . . . . . 26 . . . . 85 22 69 60 . . Launcher 26 | . . . . . 3 . . . 3 3 1 4 12 . . Special 17 | . . . . . . . . 6 7 2 . 1 1 . . Kinetic 980 | . 16 74 . 24 182 145 58 159 50 83 22 139 28 . . Thermal 54 | . . . . . 22 . . . . . . . 32 . . Explosive 26 | . . . . . 3 . . . 3 3 1 4 12 . . Electromagnetic 6 | . . . . . 4 . . . . 2 . . . . . Robot Hit Streak 51 | . 6 11 . 14 15 51 16 9 9 9 5 27 14 . . Robot Miss Streak 5 | . 4 2 . 1 4 3 2 4 4 3 2 5 5 . . Penetration Max 1 | . . . . . . . . . . . . 1 . . . Secondary Targets 7 | . . . . 1 1 2 1 2 . . . . . . . Max Gunslinging Chain 1 | . . . . 1 1 1 1 1 . . . . . . . Shots Hit Robots 799 | . 9 59 . 20 151 112 40 114 53 62 15 109 55 . . Core Hits 408 | . 6 21 . 8 78 42 22 42 24 35 9 61 60 . . Critical Kills 4 | . . . . . . 1 1 1 . . . 1 . . . Critical Parts Destroyed 3 | . . . . . . 1 . . . . . 1 1 . . Critical Strikes 25 | . . . . . . 2 1 1 . 9 2 9 1 . . Destroy 6 | . . . . . . 2 1 1 . . . 2 . . . Blast 18 | . . . . . . . . . . 9 2 7 . . . Smash 1 | . . . . . . . . . . . . . 1 . . Melee Attacks 121 | . . . . . 4 5 . 14 26 . 1 11 57 . 3 Impact 70 | . . . . . . . . . 1 . 1 11 57 . . Slashing 32 | . . . . . 4 5 . 14 6 . . . . . 3 Piercing 19 | . . . . . . . . . 19 . . . . . . Sneak Attacks 18 | . . . . . . . . . 10 . . . 8 . . Combat Hostiles . | . . . . . . . . . . . . . . . . Follow-up Attacks . | . . . . . . . . . . . . . . . . Damage Inflicted 23777 | . 76 471 . 158 3119 1518 777 1896 1548 3480 1089 5128 4517 . . Guns 8733 | . 74 469 . 158 2263 1518 743 1890 501 . . 1117 . . . Cannons 8950 | . . . . . 469 . . . . 3134 727 2981 1639 . . Explosions 4240 | . . . . . 336 . . . 132 346 362 1030 2034 . . Melee 1759 | . . . . . . . . . 915 . . . 844 . . Ramming 95 | . 2 2 . . 51 . 34 6 . . . . . . . Kinetic 16083 | . 74 469 . 158 2263 1518 743 1890 501 3056 727 4098 586 . . Thermal 1628 | . . . . . 367 . . . . . 208 . 1053 . . Explosive 4032 | . . . . . 336 . . . 132 346 154 1030 2034 . . Electromagnetic 180 | . . . . . 102 . . . . 78 . . . . . Impact 844 | . . . . . . . . . . . . . 844 . . Slashing 375 | . . . . . . . . . 375 . . . . . . Piercing 540 | . . . . . . . . . 540 . . . . . . Highest Corruption 23 | . . . . . . 1 1 7 . . . 6 13 23 23 Average Corruption 5 | . . . . . . 1 1 4 . . . 5 8 21 23 Corruption Purged . | . . . . . . . . . . . . . . . . Corruption Blocked . | . . . . . . . . . . . . . . . . Effects 101 | . . . . . . 1 3 40 . . . 4 47 4 2 Message Errors 23 | . . . . . . . 1 11 . . . 1 9 . 1 Matter Fused 17 | . . . . . . . . 9 . . . 1 7 . . Heat Flow Errors 16 | . . . . . . . . 8 . . . . 7 1 . Energy Discharges 12 | . . . . . . . . 3 . . . . 7 1 1 Parts Rejected 1 | . . . . . . . . . . . . . . 1 . Data Loss (minor) 18 | . . . . . . . 1 7 . . . 2 8 . . Data Loss (major) 5 | . . . . . . . 1 1 . . . . 3 . . Misfires 6 | . . . . . . 1 . 1 . . . . 4 . . Alerts 2 | . . . . . . . . . . . . . 1 1 . Weapon Failures 1 | . . . . . . . . . . . . . 1 . . Overload Shots 10 | . . . . . . . . . . . . . 10 . . Overflow Damage 1302 | . . . . . 13 . . . 62 60 119 316 732 . . Projectiles 522 | . . . . . 2 . . . . 60 51 296 113 . . Explosions 99 | . . . . . 11 . . . . . 68 20 . . . Melee 681 | . . . . . . . . . 62 . . . 619 . . Knockbacks 53 | . . . . . 1 . . . . 22 5 13 12 . . Impact 7 | . . . . . 1 . . . . . . . 6 . . Kinetic 43 | . . . . . . . . . . 19 5 13 6 . . Secondary 3 | . . . . . . . . . . 3 . . . . . Self-Inflicted Damage 291 | . . . . . . . . . 27 40 63 161 . . . Shots 7 | . . . . . . . . . 1 1 1 4 . . . Rammed 9 | . 1 1 . . 4 . 2 1 . . . . . . . Targets Rammed 14 | 1 1 1 . . 5 . 4 2 . . . . . . . Kicked . | . . . . . . . . . . . . . . . . Crushed 5 | 1 . . . . 1 . 2 1 . . . . . . . Highest Temperature 439 | . 6 36 . 20 166 151 93 371 20 198 51 380 439 206 . Average Temperature 65 | . 6 12 . 6 54 48 24 85 7 49 16 109 75 111 . Received Heat Transfer 3415 | . 12 249 48 36 531 270 99 317 57 909 150 395 324 . 18 Effects 8 | . . . . . . . . 3 . . . 3 2 . . Shutdowns 1 | . . . . . . . . . . . . 1 . . . Energy Bleed 2 | . . . . . . . . 1 . . . . 1 . . Interference 5 | . . . . . . . . 2 . . . 2 1 . . Siege Activations . | . . . . . . . . . . . . . . . . Robots Corrupted . | . . . . . . . . . . . . . . . . Combat Hostiles . | . . . . . . . . . . . . . . . . Parts Fried 8 | . . . . . 1 . . . . . . . 7 . . Impact Corruptions 21 | . . . . . 1 . . . . . . . 20 . . Robots Melted . | . . . . . . . . . . . . . . . . Combat Hostiles . | . . . . . . . . . . . . . . . . Parts Melted 7 | . . . . . . . . . . 1 1 . 5 . . Heat Transferred 2126 | . . . . . 666 . . . . . 150 . 1310 . . Parts Sabotaged . | . . . . . . . . . . . . . . . . Parts Stolen . | . . . . . . . . . . . . . . . . Parts Stripped . | . . . . . . . . . . . . . . . . Power Chain Reactions 1 | . . . . . . . . . . . . . 1 . . Missiles Intercepted . | . . . . . . . . . . . . . . . . Alert | -11 -10 -10 -10 -9 -8 -8 -8 -8 -7 -7 -7 -7 -6 -6 -6 ------- Run | Jun Mat Min Exi Min Mat Gar Mat Gar Fac Gar Fac Gar Fac Was Fac Peak Influence 2011 | . 109 477 . 50 328 632 499 949 611 1414 928 2011 1856 647 457 Initial 1055 | . 3 42 . . . 90 308 118 497 218 742 649 1055 642 424 Average 634 | . 63 309 . 33 137 330 359 598 416 866 831 1343 1251 630 437 Maximum Alert Level 5 | . . 2 . . 1 2 2 3 2 4 3 5 5 2 2 Low Security (%) 20 | 100 100 23 . 100 72 15 6 3 . . . . . . . Level 1 22 | . . 27 . . 27 49 64 17 51 19 . . . . . Level 2 20 | . . 48 . . . 34 28 47 48 16 . 12 . 100 100 Level 3 17 | . . . . . . . . 31 . 33 100 13 49 . . Level 4 12 | . . . . . . . . . . 31 . 39 34 . . Level 5 6 | . . . . . . . . . . . . 35 15 . . High Security . | . . . . . . . . . . . . . . . . Max Security . | . . . . . . . . . . . . . . . . Squads Dispatched 18 | . 1 1 . . 3 . . . 1 . 1 . 10 . 1 Investigation 4 | . 1 . . . . . . . . . . . 2 . 1 Extermination 6 | . . . . . . . . . 1 . . . 5 . . Reinforcement 4 | . . . . . 3 . . . . . 1 . . . . Assault 4 | . . 1 . . . . . . . . . . 3 . . Garrison . | . . . . . . . . . . . . . . . . Intercept . | . . . . . . . . . . . . . . . . Searches Triggered . | . . . . . . . . . . . . . . . . Construction Impeded 1 | . . . . . . . . . . . 1 . . . . Haulers Reinforced . | . . . . . . . . . . . . . . . . Active Scanning Responses . | . . . . . . . . . . . . . . . . Cargo Convoy Interrupts 1 | . . . . . . . . . . . . . 1 . . Stealth | -11 -10 -10 -10 -9 -8 -8 -8 -8 -7 -7 -7 -7 -6 -6 -6 --------- Run | Jun Mat Min Exi Min Mat Gar Mat Gar Fac Gar Fac Gar Fac Was Fac Distress Signals 8 | . 2 . . 1 3 . 1 . 1 . . . . . . Communications Jammed . | . . . . . . . . . . . . . . . . Distress Signals . | . . . . . . . . . . . . . . . . Times Spotted 309 | . 6 11 3 3 37 13 14 27 17 44 6 40 76 6 6 Peak Tracking Total 12 | . 4 4 3 2 5 3 4 7 5 7 3 6 12 6 3 Tactical Retreats 25 | . 1 . . . . 1 . 2 1 7 . 3 10 . . Traps | -11 -10 -10 -10 -9 -8 -8 -8 -8 -7 -7 -7 -7 -6 -6 -6 ------- Run | Jun Mat Min Exi Min Mat Gar Mat Gar Fac Gar Fac Gar Fac Was Fac Traps Triggered 30 | . 1 . . . . 6 . 7 1 8 1 5 1 . . Indirectly . | . . . . . . . . . . . . . . . . Trap Hack Attempts . | . . . . . . . . . . . . . . . . Triggered . | . . . . . . . . . . . . . . . . Disarmed . | . . . . . . . . . . . . . . . . Reprogrammed . | . . . . . . . . . . . . . . . . Reused . | . . . . . . . . . . . . . . . . Traps Extracted . | . . . . . . . . . . . . . . . . Installed . | . . . . . . . . . . . . . . . . Triggered 2 | . . . . . . . . . . . . . 2 . . Power Sources Rigged 8 | . . . . . . . . 1 2 1 . . 4 . . Exploded 8 | . . . . . . . . 1 2 1 . . 3 1 . Machines | -11 -10 -10 -10 -9 -8 -8 -8 -8 -7 -7 -7 -7 -6 -6 -6 ---------- Run | Jun Mat Min Exi Min Mat Gar Mat Gar Fac Gar Fac Gar Fac Was Fac Machines Disabled 46 | . . 14 . . 2 3 1 4 . 5 4 7 6 . . Max in Single Turn 4 | . . . . . 1 1 1 1 . 1 4 1 4 . . Garrison Relay 13 | . . . . . . 2 . 3 . 4 . 4 . . . Phase Generator 1 | . . . . . . . . . . . . 1 . . . Machines Repaired . | . . . . . . . . . . . . . . . . Machines Sabotaged . | . . . . . . . . . . . . . . . . Overloaded Fab Kills 3 | . . . . . . . . . . . . . 3 . . Hacking | -11 -10 -10 -10 -9 -8 -8 -8 -8 -7 -7 -7 -7 -6 -6 -6 --------- Run | Jun Mat Min Exi Min Mat Gar Mat Gar Fac Gar Fac Gar Fac Was Fac Machines Accessed 36 | . 1 . 2 . 7 1 3 3 7 2 1 3 5 . 1 Terminals 21 | . 1 . . . 5 1 2 3 2 2 . 3 2 . . Fabricators 2 | . . . . . . . . . 1 . . . 1 . . Repair Stations 1 | . . . . . . . . . 1 . . . . . . Recycling Units 4 | . . . . . . . . . 1 . . . 2 . 1 Scanalyzers 2 | . . . . . 1 . . . 1 . . . . . . Garrison Access 4 | . . . . . 1 . 1 . 1 . 1 . . . . Total Hacks 101 | . 7 . 2 . 26 1 13 3 13 3 1 7 19 . 6 Successful 45 | . 4 . 2 . 16 1 5 1 5 2 1 1 6 . 1 Failed 56 | . 3 . . . 10 . 8 2 8 1 . 6 13 . 5 Catastrophic 8 | . 1 . . . . . . 2 1 . . . 2 . 2 Database Lockouts . | . . . . . . . . . . . . . . . . Manual 43 | . 7 . 1 . 13 . 12 . 3 . . . 7 . . Terminals 70 | . 7 . . . 21 1 12 3 5 3 . 7 11 . . Fabricators 2 | . . . . . . . . . 1 . . . 1 . . Repair Stations 2 | . . . . . . . . . 2 . . . . . . Recycling Units 14 | . . . . . . . . . 1 . . . 7 . 6 Scanalyzers 7 | . . . . . 4 . . . 3 . . . . . . Garrison Access 4 | . . . . . 1 . 1 . 1 . 1 . . . . Terminal Hacks 19 | . 2 . 2 . 8 1 1 1 . 2 . 1 1 . . Record 1 | . . . 1 . . . . . . . . . . . . Robot Analysis 3 | . 2 . . . 1 . . . . . . . . . . Prototype ID Bank 1 | . . . . . 1 . . . . . . . . . . Emergency Access Points 3 | . . . . . . 1 . . . 1 . 1 . . . Terminal Index 1 | . . . . . 1 . . . . . . . . . . Recycling Unit Index 1 | . . . . . . . . . . . . . 1 . . Unreport Threat 3 | . . . . . 2 . 1 . . . . . . . . Locate Traps 1 | . . . . . 1 . . . . . . . . . . Zone Layout 2 | . . . . . 2 . . . . . . . . . . Garrison Registry 1 | . . . . . . . . 1 . . . . . . . Security Stations 1 | . . . . . . . . . . 1 . . . . . EX-Prototype ID Bank 1 | . . . 1 . . . . . . . . . . . . Fabricator Hacks . | . . . . . . . . . . . . . . . . Repair Station Hacks 2 | . . . . . . . . . 2 . . . . . . Scan Component 1 | . . . . . . . . . 1 . . . . . . Repair 1 | . . . . . . . . . 1 . . . . . . Recycling Unit Hacks 2 | . . . . . . . . . . . . . 1 . 1 Retrieve Components 2 | . . . . . . . . . . . . . 1 . 1 Scanalyzer 5 | . . . . . 4 . . . 1 . . . . . . Insert Component 3 | . . . . . 2 . . . 1 . . . . . . Analyze 2 | . . . . . 2 . . . . . . . . . . Garrison Access Hacks 4 | . . . . . 1 . 1 . 1 . 1 . . . . Unlock Access 4 | . . . . . 1 . 1 . 1 . 1 . . . . Unauthorized Hacks 13 | . 2 . . . 3 . 3 . 1 . . . 4 . . Terminals 10 | . 2 . . . 3 . 3 . . . . . 2 . . Assimilate 1 | . . . . . . . 1 . . . . . . . . Botnet 7 | . 1 . . . 3 . 2 . . . . . 1 . . Disrupt 1 | . 1 . . . . . . . . . . . . . . Operators 1 | . . . . . . . . . . . . . 1 . . Fabricators 1 | . . . . . . . . . . . . . 1 . . Overload 1 | . . . . . . . . . . . . . 1 . . Repair Stations . | . . . . . . . . . . . . . . . . Recycling Units 2 | . . . . . . . . . 1 . . . 1 . . Mask 2 | . . . . . . . . . 1 . . . 1 . . Scanalyzers . | . . . . . . . . . . . . . . . . Garrison Access . | . . . . . . . . . . . . . . . . Data Cores Recovered 1 | . . . . . . . . . . . 1 . . . . Used . | . . . . . . . . . . . . . . . . Hacking Detections 27 | . 1 . . . 6 . 3 2 5 2 1 3 3 . 1 Full Trace Events 3 | . . . . . . . . . . . . 1 1 . 1 Feedback Events . | . . . . . . . . . . . . . . . . Feedback Blocked . | . . . . . . . . . . . . . . . . Robot Schematics Acquired . | . . . . . . . . . . . . . . . . Robots Built . | . . . . . . . . . . . . . . . . Authchips . | . . . . . . . . . . . . . . . . Time . | . . . . . . . . . . . . . . . . Total Robot Build Rating . | . . . . . . . . . . . . . . . . Part Schematics Acquired 2 | . . . . . 2 . . . . . . . . . . Parts Built . | . . . . . . . . . . . . . . . . Authchips . | . . . . . . . . . . . . . . . . Time . | . . . . . . . . . . . . . . . . Total Part Build Rating . | . . . . . . . . . . . . . . . . Parts Repaired 1 | . . . . . . . . . 1 . . . . . . Time 44 | . . . . . . . . . 44 . . . . . . Parts Recycled . | . . . . . . . . . . . . . . . . Recycled Matter . | . . . . . . . . . . . . . . . . Retrieved Matter . | . . . . . . . . . . . . . . . . Retrieved Components 10 | . . . . . . . . . . . . . 10 . . Parts Scanalyzed 3 | . . . . . 2 . . . 1 . . . . . . Part Schematics Acquired 2 | . . . . . 2 . . . . . . . . . . Parts Damaged . | . . . . . . . . . . . . . . . . Bothacking | -11 -10 -10 -10 -9 -8 -8 -8 -8 -7 -7 -7 -7 -6 -6 -6 ------------ Run | Jun Mat Min Exi Min Mat Gar Mat Gar Fac Gar Fac Gar Fac Was Fac Used RIF Installer 7 | . . . . . . 2 . 2 . 1 . 2 . . . Hotswap 1 | . . . . . . . . . . . . 1 . . . Zone Cloak 1 | . . . . . . . . 1 . . . . . . . Robot Detection 1 | . . . . . . . . . . . . 1 . . . Watcher Feeds 1 | . . . . . . . . . . 1 . . . . . Patrol Navigation 1 | . . . . . . 1 . . . . . . . . . Structural Interface 1 | . . . . . . . . 1 . . . . . . . Robots Hacked 8 | . . . . . . . . . 4 2 . 1 1 . . Non-combat 3 | . . . . . . . . . 2 . . . 1 . . Combat 5 | . . . . . . . . . 2 2 . 1 . . . Robot Hacks Applied 10 | . . . . . . . . . 6 2 . 1 1 . . find_chute 1 | . . . . . . . . . 1 . . . . . . drop_inventory 1 | . . . . . . . . . . . . . 1 . . find_recycling 1 | . . . . . . . . . 1 . . . . . . find_garrison 1 | . . . . . . . . . 1 . . . . . . scatter_targeting 1 | . . . . . . . . . 1 . . . . . . reboot_system 2 | . . . . . . . . . 2 . . . . . . overwrite_iff 2 | . . . . . . . . . . 2 . . . . . formatsys_high 1 | . . . . . . . . . . . . 1 . . . Relay Couplers Released 55 | . . . . . . 7 . 14 . 14 . 20 . . . Machine Destruction 55 | . . . . . . 7 . 14 . 14 . 20 . . . Attached 7 | . . . . . . . . . 3 1 . 1 2 . . Fabnet Peak Effective % . | . . . . . . . . . . . . . . . . Robots Rewired 10 | . . . . . . . . 3 . 5 . 2 . . . Allies Hacked . | . . . . . . . . . . . . . . . . Hacks Repelled . | . . . . . . . . . . . . . . . . Allies | -11 -10 -10 -10 -9 -8 -8 -8 -8 -7 -7 -7 -7 -6 -6 -6 -------- Run | Jun Mat Min Exi Min Mat Gar Mat Gar Fac Gar Fac Gar Fac Was Fac Total Allies 16 | . . 1 . . . . . 3 . 7 . 5 . . . Largest Group 3 | . . 1 . . . . . 3 2 3 . 2 . . . Highest-Rated Group 175 | . . 31 . . . . . 120 77 70 . 175 . . . Highest-Rated Ally 95 | . . 31 . . . . . 40 40 39 . 95 . . . Total Orders 2 | . . . . . . . . 2 . . . . . . . STAY 1 | . . . . . . . . 1 . . . . . . . FOLLOW 1 | . . . . . . . . 1 . . . . . . . Ally Attacks 101 | . . 6 . . . . . 12 13 37 . 33 . . . Total Damage 3103 | . . 632 . . . . . 340 206 549 . 1376 . . . Kills 24 | . . 5 . . . . . 3 3 4 . 9 . . . Allies Corrupted 1 | . . . . . . . . . . . . 1 . . . Allies Melted 1 | . . . . . . . . . . 1 . . . . . Intel | -11 -10 -10 -10 -9 -8 -8 -8 -8 -7 -7 -7 -7 -6 -6 -6 ------- Run | Jun Mat Min Exi Min Mat Gar Mat Gar Fac Gar Fac Gar Fac Was Fac Robot Analysis Total 3 | . 2 . . . 1 . . . . . . . . . . Derelict Logs Recovered 2 | . . 1 . 1 . . . . . . . . . . . Drone Launches . | . . . . . . . . . . . . . . . . Drone Recoveries . | . . . . . . . . . . . . . . . . Exploration | -11 -10 -10 -10 -9 -8 -8 -8 -8 -7 -7 -7 -7 -6 -6 -6 ------------- Run | Jun Mat Min Exi Min Mat Gar Mat Gar Fac Gar Fac Gar Fac Was Fac Turns Passed 17079 | 103 351 468 894 580 2642 1289 954 1760 1652 1752 383 1848 2245 86 72 Spaces Moved 8323 | 59 171 221 391 139 826 324 255 447 1144 1027 185 817 2112 93 112 Core 372 | 7 . . . . . . . . . . . . 201 52 112 Treads 2739 | 52 171 221 291 . 826 324 255 447 152 . . . . . . Legs . | . . . . . . . . . . . . . . . . Wheels 3341 | . . . 100 139 . . . . 464 1027 185 817 568 41 . Hover 1848 | . . . . . . . . . 528 . . . 1320 . . Flight 23 | . . . . . . . . . . . . . 23 . . Fastest Speed 22 | 50 160 160 160 380 240 325 330 250 38 130 130 141 22 50 50 Average Speed 160 | 146 160 160 224 380 261 329 330 323 114 130 161 159 65 85 50 Slowest Speed 560 | 160 160 160 560 380 325 330 330 330 330 145 290 210 170 165 50 Overloaded Moves 41 | . . . . . . . . . . . . . 41 . . Propulsion Burnouts . | . . . . . . . . . . . . . . . . Robots Hopped . | . . . . . . . . . . . . . . . . Cave-ins Triggered 2 | . . . . . . . . . . . . . 2 . . Exploration Rate (%) 45 | 4 33 58 70 35 67 46 24 59 20 92 6 95 34 81 4 Regions Visited 15 Branch Regions 3 Pre-discovered Areas 1 | . . . 1 . . . . . . . . . . . . Known Exits Taken 6 | . . . 1 1 1 . 1 . 1 . 1 . . . . Unknown Exits Taken 3 | 1 1 1 . . . . . . . . . . . . . Scrap Searched 2 | . . . . 2 . . . . . . . . . . . Spaces Dug 78 | . . . . . 4 2 . 2 3 . 1 15 48 . 3 Terrain Destroyed 419 | . . . . . 12 2 . 2 18 52 25 111 194 . 3 Melee 58 | . . . . . 4 2 . 2 3 . 1 . 43 . 3 Projectile 63 | . . . . . . . . . . 21 3 28 11 . . AOE 298 | . . . . . 8 . . . 15 31 21 83 140 . . Terrain Rammed . | . . . . . . . . . . . . . . . . Walls Destroyed . | . . . . . . . . . . . . . . . . Machines Disabled . | . . . . . . . . . . . . . . . . Actions | -11 -10 -10 -10 -9 -8 -8 -8 -8 -7 -7 -7 -7 -6 -6 -6 --------- Run | Jun Mat Min Exi Min Mat Gar Mat Gar Fac Gar Fac Gar Fac Was Fac Total 10918 | 73 236 276 411 173 1154 454 325 644 1415 1316 235 1169 2815 99 123 Wait 1012 | . 47 14 . 18 92 26 30 38 93 70 9 94 474 . 7 Move 8311 | 59 170 220 390 138 826 322 255 445 1144 1026 185 815 2112 92 112 Hop . | . . . . . . . . . . . . . . . . Pick Up 195 | 8 4 1 15 4 39 4 3 12 40 13 4 11 37 . . Fast Attach 87 | 4 2 1 . 1 8 2 . 5 12 8 2 19 21 1 1 Attach 76 | 2 . 1 1 . 12 4 1 3 11 6 4 10 19 2 . Detach 24 | . . . . . 2 . . . 2 5 2 5 7 1 . Swap 71 | . . . 2 . 20 6 . 11 14 5 1 4 7 1 . Drop 169 | . 4 1 3 . 38 5 3 13 34 18 4 19 25 2 . Fire 695 | . 8 37 . 12 108 72 29 85 35 90 23 144 52 . . Melee 121 | . . . . . 4 5 . 14 26 . 1 11 57 . 3 Ram . | . . . . . . . . . . . . . . . . Kick . | . . . . . . . . . . . . . . . . Crush 13 | . 1 1 . . 5 . 4 2 . . . . . . . Escape Stasis 83 | . . . . . . 8 . 8 2 50 . 15 . . . Rewire 53 | . . . . . . . . 7 . 24 . 22 . . . Trap 8 | . . . . . . . . 1 2 1 . . 4 . . Miscellaneous . | . . . . . . . . . . . . . . . . Route ------- -11/Junkyard -10/Materials -10/Mines (discovered 3 exits: [*Mat x2] / *Exi) -10/Exiles (discovered 2 exits: *Min x2) -9/Mines -8/Materials (discovered 4 exits: *Fac x2 / [*Sto] / Gar) -8/Garrison (discovered 2 exits: *Mat x2) -8/Materials (discovered 2 exits: [*Sto] / Gar) -8/Garrison (discovered 3 exits: *Fac x3) -7/Factory (discovered 2 exits: [*Low] / Gar) -7/Garrison (discovered 4 exits: *Fac x3 / *Fac) -7/Factory -7/Garrison (discovered 3 exits: *Fac x3) -6/Factory (discovered 2 exits: [*Fac] / [*Low]) -6/Waste -6/Factory History --------- Turn | Location | Event 18 | -11/Junkyard | Discovered new exit (range 14) 104 | -11/Junkyard | Entered Materials 304 | -10/Materials | Build established: Mutant 408 | -10/Materials | Discovered new exit (range 11) 455 | -10/Materials | Entered Mines 516 | -10/Mines | Met a Derelict testing a Signal Generator 532 | -10/Mines | Discovered new exit (range 9) 560 | -10/Mines | Met a Derelict bent on vengeance 582 | -10/Mines | Discovered new exit (range 10) 863 | -10/Mines | A weapon hastily lodged in a ceiling crevice suddenly fell to the ground 917 | -10/Mines | Deemed a non-threat by the Exiles lab entrance 917 | -10/Mines | Discovered new exit (range 5) 923 | -10/Mines | Entered Exiles 924 | -10/Exiles | Identified exit to Mines 967 | -10/Exiles | Met 8R-AWN 987 | -10/Exiles | Met EX-HEX 1076 | -10/Exiles | Met EX-DEC 1213 | -10/Exiles | Met EX-BIN 1276 | -10/Exiles | Learned location of Zion (-7) 1325 | -10/Exiles | Aligned with FarCom system 1327 | -10/Exiles | Given EX-Vault access code 1365 | -10/Exiles | Opened EX-Vault 1373 | -10/Exiles | Found XL Autogun Array 1454 | -10/Exiles | Found PSU Rigger 1463 | -10/Exiles | Found AWS/Autocannon 1529 | -10/Exiles | Exiles lab attacked by MAIN.C 1645 | -10/Exiles | Core integrity fell below 50% 1685 | -10/Exiles | Build established: Hauler-Mutant 1817 | -10/Exiles | Stole three prototypes: XL Autogun Array, PSU Rigger, AWS/Autocannon 1817 | -10/Exiles | Entered Mines 2052 | -9/Mines | Assembled infested the area 2057 | -9/Mines | Assisted by a Guerilla fighting off Assembled 2266 | -9/Mines | Identified exit to Materials 2397 | -9/Mines | Entered Materials 2397 | -8/Materials | Evolved 4 slots: Propulsion x2, Utility x2 3339 | -8/Materials | Discovered new exit (range 11) 4119 | -8/Materials | Discovered new exit (range 3) 4881 | -8/Materials | Discovered new exit (range 16) 5039 | -8/Materials | Identified exit to Garrison 5039 | -8/Materials | Entered Garrison 5096 | -8/Garrison | Triggered checkpoint 5244 | -8/Garrison | Garrison Relay disabled 5396 | -8/Garrison | Triggered checkpoint 5500 | -8/Garrison | Discovered new exit (range 8) 5574 | -8/Garrison | Triggered checkpoint 5697 | -8/Garrison | Garrison Relay disabled 5866 | -8/Garrison | Triggered checkpoint 5932 | -8/Garrison | Triggered checkpoint 6035 | -8/Garrison | Installed Relay Interface Framework 6096 | -8/Garrison | Discovered new exit (range 12) 6255 | -8/Garrison | Expanded RIF knowledge: Patrol Navigation 6328 | -8/Garrison | Entered Materials 6332 | -8/Materials | Discovered new exit (range 13) 7282 | -8/Materials | Identified exit to Garrison 7282 | -8/Materials | Entered Garrison 7318 | -8/Garrison | Core integrity fell below 50% 7498 | -8/Garrison | Triggered checkpoint 7622 | -8/Garrison | Garrison Relay disabled 7878 | -8/Garrison | Triggered checkpoint 7945 | -8/Garrison | Triggered checkpoint 8187 | -8/Garrison | Expanded RIF knowledge: Structural Interface 8302 | -8/Garrison | Discovered new exit (range 5) 8362 | -8/Garrison | Discovered new exit (range 12) 8362 | -8/Garrison | Discovered new exit (range 41) 8362 | -8/Garrison | Discovered new exit (range 58) 8682 | -8/Garrison | Triggered checkpoint 8682 | -8/Garrison | Triggered checkpoint 8689 | -8/Garrison | Garrison Relay disabled 8778 | -8/Garrison | Expanded RIF knowledge: Zone Cloak 8893 | -8/Garrison | Garrison Relay disabled 9042 | -8/Garrison | Entered Factory 9042 | -7/Factory | Accompanied by 2 allies 9042 | -7/Factory | Evolved 2 slots: Utility x2 9044 | -7/Factory | FarCom data flow suspended 9123 | -7/Factory | Build established: Bothacker-Mutant 9359 | -7/Factory | Discovered new exit (range 11) 10315 | -7/Factory | Build established: Hacker-Mutant 10607 | -7/Factory | Repaired Arm. Huge Wheel 10647 | -7/Factory | Build established: Hauler-Mutant 10694 | -7/Factory | Identified exit to Garrison 10694 | -7/Factory | Entered Garrison 10758 | -7/Garrison | Triggered checkpoint 10845 | -7/Garrison | Garrison Relay disabled 10972 | -7/Garrison | Learned Factory security intel 11034 | -7/Garrison | Triggered checkpoint 11231 | -7/Garrison | Discovered new exit (range 10) 11240 | -7/Garrison | Triggered checkpoint 11433 | -7/Garrison | Triggered checkpoint 11563 | -7/Garrison | Discovered new exit (range 11) 11598 | -7/Garrison | Triggered checkpoint 11718 | -7/Garrison | Triggered checkpoint 11753 | -7/Garrison | Garrison Relay disabled 11852 | -7/Garrison | Triggered checkpoint 11885 | -7/Garrison | Discovered new exit (range 3) 11921 | -7/Garrison | Garrison Relay disabled 11974 | -7/Garrison | Triggered checkpoint 12002 | -7/Garrison | Triggered checkpoint 12052 | -7/Garrison | Garrison Relay disabled 12074 | -7/Garrison | Triggered checkpoint 12112 | -7/Garrison | Discovered new exit (range 2) 12134 | -7/Garrison | Expanded RIF knowledge: Watcher Feeds 12255 | -7/Garrison | Build established: Bothacker-Mutant 12446 | -7/Garrison | Entered Factory 12627 | -7/Factory | Build established: Hauler-Mutant 12689 | -7/Factory | Lost 3 parts (2n1u) 12829 | -7/Factory | Identified exit to Garrison 12829 | -7/Factory | Entered Garrison 12950 | -7/Garrison | Triggered checkpoint 13032 | -7/Garrison | Triggered checkpoint 13109 | -7/Garrison | Found embedded Infiltrators 13164 | -7/Garrison | Garrison Relay disabled 13425 | -7/Garrison | Discovered new exit (range 9) 13445 | -7/Garrison | Spotted B-75 Beast 13449 | -7/Garrison | Destroyed B-75 Beast 13466 | -7/Garrison | Build established: Bothacker-Mutant 13542 | -7/Garrison | Garrison Relay disabled 13566 | -7/Garrison | Expanded RIF knowledge: Robot Detection 13580 | -7/Garrison | Triggered checkpoint 13646 | -7/Garrison | Triggered checkpoint 13784 | -7/Garrison | Triggered checkpoint 13794 | -7/Garrison | Garrison Relay disabled 13883 | -7/Garrison | Discovered new exit (range 5) 13946 | -7/Garrison | Spotted B-75 Beast 14080 | -7/Garrison | Triggered checkpoint 14357 | -7/Garrison | Discovered new exit (range 11) 14373 | -7/Garrison | Core integrity fell below 50% 14391 | -7/Garrison | Garrison Relay disabled 14569 | -7/Garrison | P-70 Sage assimilated allied ID-DS7(l) 14604 | -7/Garrison | Phase Generator disabled 14634 | -7/Garrison | Expanded RIF knowledge: Hotswap 14653 | -7/Garrison | Lost 5 parts (1n4u) 14677 | -7/Garrison | Entered Factory 14677 | -6/Factory | Evolved 2 slots: Utility x2 14935 | -6/Factory | Build established: Botlord-Mutant 15239 | -6/Factory | Build established: Mutant 15849 | -6/Factory | Cargo convoy interrupted 15881 | -6/Factory | Found Exp. Thermal Shield 15886 | -6/Factory | Found Exp. System Shield 15895 | -6/Factory | Discovered new exit (range 34) 15940 | -6/Factory | Discovered new exit (range 5) 16011 | -6/Factory | Crushed by falling debris 16021 | -6/Factory | Crushed by falling debris 16021 | -6/Factory | System corruption reached 10% 16071 | -6/Factory | Lost 10 parts (5n4u1w) 16086 | -6/Factory | Found Spectral Analyzer 16088 | -6/Factory | Found Spectral Analyzer 16214 | -6/Factory | Core integrity fell below 50% 16377 | -6/Factory | Found Imp. Powered Armor 16427 | -6/Factory | First assault squad dispatched 16482 | -6/Factory | Build established: Hauler-Mutant 16922 | -6/Factory | Sucked down chute 16922 | -6/Factory | Entered Waste 16935 | -6/Waste | Spotted C-40 Crusher 16936 | -6/Waste | Spotted C-40 Crusher 16937 | -6/Waste | EMP discharged 16945 | -6/Waste | Crushed by Compactor (1 part destroyed, 1 dropped) 16946 | -6/Waste | Spotted C-40 Crusher 16956 | -6/Waste | Crushed by Compactor (1 part destroyed, 1 dropped) 16980 | -6/Waste | Spotted C-40 Crusher 16980 | -6/Waste | Spotted C-40 Crusher 16981 | -6/Waste | Crushed by Compactor (1 part destroyed, 2 dropped) 16982 | -6/Waste | Core integrity fell below 20% 16986 | -6/Waste | Crushed by Compactor (1 part destroyed, 2 dropped) 16986 | -6/Waste | Crushed by Compactor (1 part destroyed, 1 dropped) 16994 | -6/Waste | Spotted C-40 Crusher 17003 | -6/Waste | Discovered new exit (range 12) 17008 | -6/Waste | Entered Factory 17017 | -6/Factory | Lost 5 parts (2p1n2u) 17080 | -6/Factory | Destroyed by G-67 Veteran with Field Laser Last Messages --------------- 16987_ System corrupted: IFF burst signal emitted. 16988_ Kinecellerator crushed. 16988_ Relay Coupler [Swarmer] crushed. 16988_ Lrn. Terrain Scanner crushed. 16991_ Com. Wheel crushed. 16991_ Cld. Plasma Cannon crushed. 16991_ Phase Cannon crushed. 17003_ EXIT=FOUND LOCATION=UNKNOWN GOAL=ESCAPE 17017_ RRCI:4MTDD,8M#RF 17065_ ALERT: All DSF locations entering lockdown mode. 17070_ System corrupted: Energy discharge (-21). 17072_ U-05 Engineer builds a Wall. Map ----- +----------------------------------------------------+ | ????????????????????????# [ # | | ????????????????????????# # | | ????????????????????????# + | | ????????????????????????# # | | ????????????????????????# ! # | | ????????????????????????# # ####### | | ????????????????????????# # #?????? | | ????????????????????????# ! # #?????? | | ????????????????????????# # #?????? | | ????????????????????????############## #?????? | | ???????????????????????????????####??# ##????? | | ??????????????????????????????? ?# T#????? | | ??????????????????????????????? """"?# #????? | | ??????????????????????????????? """" # ##????? | | ?????????????? ????????????? """" # #?????? | | ?????????????? T??????????? """" + #?????? | | ????????????? ""?????????? """" # #?????? | | ?????????????? ??????????? """" # #??#### | | ??????????????? ?????????? """"?# #? | | ????????????????# ????????? ?# #? | | ????????????????# ################ # | | ????????????????# # | | ????????????????# k + | | ????????????????# g # | | ????????????????# g g # | | ????????????????# @ #? | | ????????????????##########+#+###############? | | ????????????????????# """ #????????????#### | | ????????????????????# "Y" #???????????????? | | ????????????????????# " " #???????????????? | | ????????????????????# #???????????????? | | ????????????????????# #???????????????? | | ????????????????????# """"""""" #???????????????? | | ????????????????????# #???????????????? | | ???????????????????## """"""""" #???????????????? | | ???????????????????## #???????????????? | | ???????????????????## """"""""" #???????????????? | | ????????????????????# #???????????????? | | ????????????????????# #???????????????? | | ????????????????????##############???????????????? | | ???????????????????????####??????????????????????? | | ?????????????????????????????????????????????????? | | ?????????????????????????????????????????????????? | | ?????????????????????????????????????????????????? | | ?????????????????????????????????????????????????? | | ?????????????????????????????????????????????????? | | ?????????????????????????????????????????????????? | | ?????????????????????????????????????????????????? | | ?????????????????????????????????????????????????? | | ?????????????????????????????????????????????????? | +----------------------------------------------------+ Best States ------------- Heat Dissipation 61 Energy Generation 25 Energy Capacity 290 Matter Stores 372 Matter Capacity 400 Sight Range 24 Terrain Scan Density 10 Additional Mass Support 12 Armor Coverage 825 Resistance: KI 30 Resistance: TH 30 Evasion (%) 63 Targeting Accuracy 8 Core Analysis 6 Recoil Reduction 4 Offensive Hacking 20 Defensive Hacking 26 Relay Coupler Types 2 Relay Coupler Value 58 Authchip Count 1 Item Schematics ----------------- System Shield | -8/Materials | Scanalyzed Hcp. Battery | -8/Materials | Scanalyzed Robot Schematics ------------------ None Fabricated ------------ Nothing Alien Tech Used ----------------- None Achievements -------------- None Challenges ------------ None Game ------ Seed ZioniteAluminumTorch Manual? 0 Play Time 01:56:02 Cumulative 742.1 hours Start 2024.01.02 @ 14:41:33 End 2024.01.02 @ 21:28:02 Sessions 7 Manual Loads 0 Difficulty Rogue Special Mode None Game No. 667 Rogue 667 Adventurer 0 Explorer 0 Win Type - Total 37 Types 14/3/10/2/0/0/5/2/1 Lore% 97 Gallery% 96 Achievement% 84 Wizard Run 0 Options --------- ASCII 0 Keyboard 0 Movement Numpad Keybinds 0 Fullscreen 1 Font 18/Smallcaps Map View 76x50 Tactical HUD 1 Map Filters NONE Filters NONE Steam 1 RUN: 0e57264d-194f-45f5-b66a-b0fd67ade6e9